[Event "Live Chess"]
[Site "Chess.com"]
[Date "2023.05.21"]
[Round "-"]
[White "Hacker_2009"]
[Black "MarkLim1"]
[Result "1-0"]
[WhiteElo "1934"]
[BlackElo "1705"]
[TimeControl "300"]
[EndTime "6:09:02 PDT"]
[Termination "Hacker_2009 won by resignation"]

1. d4 {[%clk 0:04:57.7]} 1... c6 {[%clk 0:04:58.8]} 2. Nf3 {[%clk 0:04:55.6]}
2... d5 {[%clk 0:04:57.6]} 3. e3 {[%clk 0:04:53.8]} 3... Bg4 {[%clk 0:04:55.4]}
4. Be2 {[%clk 0:04:52.1]} 4... Nf6 {[%clk 0:04:54.4]} 5. c4 {[%clk 0:04:50]}
5... e6 {[%clk 0:04:53.1]} 6. Nc3 {[%clk 0:04:48]} 6... Bd6 {[%clk 0:04:52.1]}
7. cxd5 {[%clk 0:04:47.6]} 7... exd5 {[%clk 0:04:50.9]} 8. O-O {[%clk
0:04:47.1]} 8... O-O {[%clk 0:04:50.1]} 9. Ne5 {[%clk 0:04:46.7]} 9... Bxe2
{[%clk 0:04:48.5]} 10. Qxe2 {[%clk 0:04:45.1]} 10... Nbd7 {[%clk 0:04:47.7]} 11.
f4 {[%clk 0:04:44.5]} 11... Re8 {[%clk 0:04:42.3]} 12. b3 {[%clk 0:04:43.2]}
12... c5 {[%clk 0:04:39.5]} 13. Nb5 {[%clk 0:04:39.3]} 13... Bb8 {[%clk
0:04:33.5]} 14. Bb2 {[%clk 0:04:37]} 14... a6 {[%clk 0:04:32.6]} 15. Na3 {[%clk
0:04:35]} 15... Ne4 {[%clk 0:04:12]} 16. Rac1 {[%clk 0:04:15.2]} 16... cxd4
{[%clk 0:04:10.6]} 17. exd4 {[%clk 0:04:13.6]} 17... f6 {[%clk 0:04:09.1]} 18.
Nd3 {[%clk 0:04:03.1]} 18... Ng3 {[%clk 0:04:01.8]} 19. Qf3 {[%clk 0:04:01.3]}
19... Nxf1 {[%clk 0:03:59.1]} 20. Qxd5+ {[%clk 0:03:59.6]} 20... Kh8 {[%clk
0:03:27.6]} 21. Kxf1 {[%clk 0:03:53.5]} 21... Nb6 {[%clk 0:03:06.8]} 22. Qc5
{[%clk 0:03:14.1]} 22... Bd6 {[%clk 0:03:00.6]} 23. Qh5 {[%clk 0:02:56.5]} 23...
Bxa3 {[%clk 0:02:55.6]} 24. Bxa3 {[%clk 0:02:54.8]} 24... Qxd4 {[%clk
0:02:52.4]} 25. Qd1 {[%clk 0:02:41.3]} 25... Rad8 {[%clk 0:02:43.9]} 26. Bc5
{[%clk 0:02:34.3]} 26... Qe4 {[%clk 0:02:26.7]} 27. Bxb6 {[%clk 0:02:19.9]}
27... Rxd3 {[%clk 0:02:23.8]} 28. Qg4 {[%clk 0:02:12.4]} 28... Qe3 {[%clk
0:02:03.3]} 29. Bxe3 {[%clk 0:01:58.7]} 1-0

[Event "Live Chess"]
[Site "Chess.com"]
[Date "2023.05.21"]
[Round "-"]
[White "WelshTiger"]
[Black "Leonid_Starozhilov"]
[Result "1/2-1/2"]
[WhiteElo "2308"]
[BlackElo "2632"]
[TimeControl "300"]
[EndTime "6:09:03 PDT"]
[Termination "Game drawn by repetition"]

1. e4 {[%clk 0:04:59]} 1... c5 {[%clk 0:04:58.7]} 2. Nf3 {[%clk 0:04:57.2]} 2...
e6 {[%clk 0:04:58.1]} 3. b3 {[%clk 0:04:54.9]} 3... b6 {[%clk 0:04:56]} 4. Bb2
{[%clk 0:04:53.5]} 4... Bb7 {[%clk 0:04:55.3]} 5. Bd3 {[%clk 0:04:47.4]} 5...
Nc6 {[%clk 0:04:53.2]} 6. O-O {[%clk 0:04:45.5]} 6... d6 {[%clk 0:04:42.9]} 7.
c3 {[%clk 0:04:44]} 7... Nf6 {[%clk 0:04:40]} 8. Bc2 {[%clk 0:04:43]} 8... Be7
{[%clk 0:04:32.9]} 9. Qe2 {[%clk 0:04:42]} 9... O-O {[%clk 0:04:31.6]} 10. d3
{[%clk 0:04:38.7]} 10... e5 {[%clk 0:04:30.1]} 11. Nbd2 {[%clk 0:04:36.9]} 11...
b5 {[%clk 0:04:27.7]} 12. a4 {[%clk 0:04:35.3]} 12... a6 {[%clk 0:04:26.8]} 13.
d4 {[%clk 0:04:28.6]} 13... exd4 {[%clk 0:04:19]} 14. cxd4 {[%clk 0:04:27.7]}
14... Nxd4 {[%clk 0:04:11]} 15. Nxd4 {[%clk 0:04:27.6]} 15... cxd4 {[%clk
0:04:10.4]} 16. Bxd4 {[%clk 0:04:21.3]} 16... Bc6 {[%clk 0:04:03.5]} 17. Bd3
{[%clk 0:04:15.6]} 17... Qd7 {[%clk 0:03:50.4]} 18. Rfc1 {[%clk 0:04:06.3]}
18... bxa4 {[%clk 0:03:37]} 19. bxa4 {[%clk 0:04:05.5]} 19... Bxa4 {[%clk
0:03:34.1]} 20. Bxa6 {[%clk 0:04:01.8]} 20... Rfb8 {[%clk 0:03:27]} 21. Bd3
{[%clk 0:03:55.3]} 21... Bc6 {[%clk 0:03:22.6]} 22. Nc4 {[%clk 0:03:53]} 22...
Rxa1 {[%clk 0:03:19]} 23. Rxa1 {[%clk 0:03:51.6]} 23... Qe6 {[%clk 0:03:07]} 24.
Nd2 {[%clk 0:03:29.7]} 24... Ra8 {[%clk 0:02:58.5]} 25. Rc1 {[%clk 0:03:25.7]}
25... Rc8 {[%clk 0:02:42.6]} 26. h3 {[%clk 0:03:24.2]} 26... h5 {[%clk
0:02:39.1]} 27. Bxf6 {[%clk 0:03:03.5]} 27... Qxf6 {[%clk 0:02:29.8]} 28. Qxh5
{[%clk 0:02:59.5]} 28... Qf4 {[%clk 0:02:25.7]} 29. Qe2 {[%clk 0:02:56.1]} 29...
Bg5 {[%clk 0:02:22.3]} 30. Rd1 {[%clk 0:02:55.3]} 30... Ba4 {[%clk 0:02:20.4]}
31. Ra1 {[%clk 0:02:43]} 31... Qxd2 {[%clk 0:01:54.6]} 32. Qxd2 {[%clk
0:02:41.4]} 32... Bxd2 {[%clk 0:01:54.5]} 33. Rxa4 {[%clk 0:02:40.8]} 33... g6
{[%clk 0:01:42]} 34. Bc4 {[%clk 0:02:38.6]} 34... Rc7 {[%clk 0:01:40]} 35. g3
{[%clk 0:02:37.6]} 35... Kg7 {[%clk 0:01:38.7]} 36. Kg2 {[%clk 0:02:37]} 36...
Bc3 {[%clk 0:01:37.9]} 37. Kf3 {[%clk 0:02:32]} 37... Bd4 {[%clk 0:01:35.9]} 38.
Ke2 {[%clk 0:02:28.9]} 38... Rb7 {[%clk 0:01:32.6]} 39. f4 {[%clk 0:02:25.7]}
39... Rb2+ {[%clk 0:01:29]} 40. Kd3 {[%clk 0:02:24.9]} 40... Bc5 {[%clk
0:01:27.4]} 41. e5 {[%clk 0:02:08.1]} 41... Rg2 {[%clk 0:01:20.9]} 42. Ke4
{[%clk 0:02:04.7]} 42... dxe5 {[%clk 0:01:11.7]} 43. fxe5 {[%clk 0:01:56.3]}
43... Rxg3 {[%clk 0:01:09.2]} 44. Ra5 {[%clk 0:01:53.1]} 44... Re3+ {[%clk
0:01:04.2]} 45. Kd5 {[%clk 0:01:51.7]} 45... Bb4 {[%clk 0:01:01.5]} 46. Ra7
{[%clk 0:01:49.9]} 46... Bc3 {[%clk 0:00:58.8]} 47. Kc6 {[%clk 0:01:42.2]} 47...
Rxe5 {[%clk 0:00:57.6]} 48. Rxf7+ {[%clk 0:01:40.5]} 48... Kh6 {[%clk
0:00:56.8]} 49. Rf3 {[%clk 0:01:37.8]} 49... Bd4 {[%clk 0:00:55]} 50. Bd5 {[%clk
0:01:36.1]} 50... Re3 {[%clk 0:00:54.1]} 51. Rxe3 {[%clk 0:01:30.6]} 51... Bxe3
{[%clk 0:00:53.5]} 52. Kd6 {[%clk 0:01:30.5]} 52... g5 {[%clk 0:00:52.7]} 53.
Ke6 {[%clk 0:01:29.8]} 53... Bf2 {[%clk 0:00:51.9]} 54. Kf5 {[%clk 0:01:29]}
54... Bh4 {[%clk 0:00:51.8]} 55. Kg4 {[%clk 0:01:28.4]} 55... Kg7 {[%clk
0:00:51.2]} 56. Be4 {[%clk 0:01:26.6]} 56... Kh8 {[%clk 0:00:50.6]} 57. Bf5
{[%clk 0:01:26.5]} 57... Kg7 {[%clk 0:00:50.2]} 58. Bd3 {[%clk 0:01:25.6]} 58...
Kf6 {[%clk 0:00:50]} 59. Bf5 {[%clk 0:01:25.1]} 59... Kg7 {[%clk 0:00:49.8]} 60.
Be4 {[%clk 0:01:24.7]} 60... Kf6 {[%clk 0:00:49.7]} 61. Bf5 {[%clk 0:01:22.9]}
61... Kg7 {[%clk 0:00:49.6]} 1/2-1/2

[Event "Live Chess"]
[Site "Chess.com"]
[Date "2023.05.21"]
[Round "-"]
[White "GMHarry-youtube"]
[Black "EdenHazard8"]
[Result "1-0"]
[WhiteElo "2025"]
[BlackElo "1952"]
[TimeControl "300"]
[EndTime "6:09:21 PDT"]
[Termination "GMHarry-youtube won - game abandoned"]

1. e4 {[%clk 0:04:58.8]} 1... c6 {[%clk 0:04:59.2]} 2. d4 {[%clk 0:04:56.8]}
2... d5 {[%clk 0:04:59.1]} 3. e5 {[%clk 0:04:56.1]} 3... c5 {[%clk 0:04:58.2]}
4. dxc5 {[%clk 0:04:53.9]} 4... e6 {[%clk 0:04:55.5]} 5. a3 {[%clk 0:04:52.5]}
5... Nd7 {[%clk 0:04:53.2]} 6. b4 {[%clk 0:04:45.6]} 6... Nxe5 {[%clk
0:04:51.9]} 7. Bb2 {[%clk 0:04:43.2]} 7... Ng6 {[%clk 0:04:50.5]} 8. c4 {[%clk
0:04:39.7]} 8... Nf6 {[%clk 0:04:49.1]} 9. Nf3 {[%clk 0:04:36.6]} 9... Be7
{[%clk 0:04:47.4]} 10. cxd5 {[%clk 0:04:35.1]} 10... exd5 {[%clk 0:04:47.3]} 11.
Bd3 {[%clk 0:04:32.4]} 11... O-O {[%clk 0:04:45.9]} 12. O-O {[%clk 0:04:31.3]}
12... Nf4 {[%clk 0:04:38.6]} 13. Bc2 {[%clk 0:04:27.7]} 13... Re8 {[%clk
0:04:36.3]} 14. g3 {[%clk 0:04:25.8]} 14... Ng6 {[%clk 0:04:31.6]} 15. h4 {[%clk
0:04:18]} 15... Bg4 {[%clk 0:04:28]} 16. Qd3 {[%clk 0:03:56.5]} 16... Qc7 {[%clk
0:04:14]} 17. Ng5 {[%clk 0:03:40.7]} 17... Ne4 {[%clk 0:04:05.2]} 18. Nxf7
{[%clk 0:03:15.7]} 18... Be6 {[%clk 0:03:27]} 19. Ng5 {[%clk 0:03:03.4]} 1-0

[Event "Live Chess"]
[Site "Chess.com"]
[Date "2023.05.21"]
[Round "-"]
[White "Vitalii18a"]
[Black "risinghelios"]
[Result "0-1"]
[WhiteElo "1127"]
[BlackElo "1895"]
[TimeControl "300"]
[EndTime "6:09:26 PDT"]
[Termination "risinghelios won on time"]

1. e4 {[%clk 0:04:57]} 1... e5 {[%clk 0:04:59.9]} 2. Nf3 {[%clk 0:04:55.5]} 2...
Nc6 {[%clk 0:04:59.8]} 3. Bb5 {[%clk 0:04:53.4]} 3... a6 {[%clk 0:04:58.7]} 4.
Ba4 {[%clk 0:04:52.2]} 4... b5 {[%clk 0:04:58.4]} 5. Bb3 {[%clk 0:04:51]} 5...
Nf6 {[%clk 0:04:58.1]} 6. d3 {[%clk 0:04:47.8]} 6... Bc5 {[%clk 0:04:57.8]} 7.
O-O {[%clk 0:04:46.1]} 7... O-O {[%clk 0:04:57.6]} 8. Re1 {[%clk 0:03:55]} 8...
d6 {[%clk 0:04:56.6]} 9. c3 {[%clk 0:03:52.3]} 9... Be6 {[%clk 0:04:54.6]} 10.
d4 {[%clk 0:03:48.5]} 10... Bxb3 {[%clk 0:04:54]} 11. axb3 {[%clk 0:03:46.8]}
11... exd4 {[%clk 0:04:52.6]} 12. cxd4 {[%clk 0:03:45.5]} 12... Bb6 {[%clk
0:04:48]} 13. Bg5 {[%clk 0:03:35]} 13... h6 {[%clk 0:04:31]} 14. Bh4 {[%clk
0:03:32.8]} 14... Re8 {[%clk 0:04:23]} 15. Nc3 {[%clk 0:03:28.2]} 15... g5
{[%clk 0:04:12.9]} 16. Bg3 {[%clk 0:03:24.7]} 16... Nh7 {[%clk 0:04:10.2]} 17.
e5 {[%clk 0:03:00.1]} 17... dxe5 {[%clk 0:04:08.8]} 18. dxe5 {[%clk 0:02:58.9]}
18... Qxd1 {[%clk 0:04:04.2]} 19. Raxd1 {[%clk 0:02:57.3]} 19... Rad8 {[%clk
0:04:03.5]} 20. Rxd8 {[%clk 0:02:55.3]} 20... Rxd8 {[%clk 0:04:03.4]} 21. e6
{[%clk 0:02:47.8]} 21... fxe6 {[%clk 0:03:55.5]} 22. h3 {[%clk 0:02:40.6]} 22...
Na5 {[%clk 0:03:51.7]} 23. Rxe6 {[%clk 0:02:35.7]} 23... Nxb3 {[%clk 0:03:49.4]}
24. Rxh6 {[%clk 0:02:33]} 24... Kg7 {[%clk 0:03:43.7]} 25. Re6 {[%clk
0:02:17.7]} 25... Nf6 {[%clk 0:03:34.4]} 26. Be5 {[%clk 0:02:13.9]} 26... Rf8
{[%clk 0:03:31.3]} 27. Nxg5 {[%clk 0:02:02.3]} 27... Bd4 {[%clk 0:03:28.9]} 28.
Re7+ {[%clk 0:01:46.6]} 28... Kg6 {[%clk 0:03:15.7]} 29. Nf3 {[%clk 0:01:29]}
29... Bxe5 {[%clk 0:03:03.1]} 30. Nxe5+ {[%clk 0:01:22.7]} 30... Kf5 {[%clk
0:03:01.4]} 31. Nf3 {[%clk 0:01:09]} 31... Nc5 {[%clk 0:02:45.7]} 32. Rxc7
{[%clk 0:01:06.2]} 32... Nfe4 {[%clk 0:02:31.4]} 33. Nh4+ {[%clk 0:00:42.9]}
33... Ke5 {[%clk 0:02:21]} 34. Ng6+ {[%clk 0:00:39.2]} 34... Kd4 {[%clk
0:02:16.2]} 35. Nxf8 {[%clk 0:00:39.1]} 35... b4 {[%clk 0:02:08.6]} 36. Nxe4
{[%clk 0:00:37.7]} 36... Nxe4 {[%clk 0:02:08.5]} 37. Ng6 {[%clk 0:00:31.8]}
37... Nd2 {[%clk 0:02:06.8]} 38. Nf4 {[%clk 0:00:29.4]} 38... Nc4 {[%clk
0:02:05.6]} 39. Ne2+ {[%clk 0:00:22.3]} 39... Kd3 {[%clk 0:02:04.5]} 40. Kf1
{[%clk 0:00:21.4]} 40... Nxb2 {[%clk 0:02:03.3]} 41. Ra7 {[%clk 0:00:16.4]}
41... Nc4 {[%clk 0:01:57.6]} 42. Rxa6 {[%clk 0:00:14.8]} 42... b3 {[%clk
0:01:56.8]} 43. h4 {[%clk 0:00:13.8]} 43... b2 {[%clk 0:01:56]} 44. Nf4+ {[%clk
0:00:03.2]} 44... Kc2 {[%clk 0:01:54.8]} 0-1

[Event "Live Chess"]
[Site "Chess.com"]
[Date "2023.05.21"]
[Round "-"]
[White "wot-not"]
[Black "friarnator"]
[Result "0-1"]
[WhiteElo "1528"]
[BlackElo "2020"]
[TimeControl "300"]
[EndTime "6:09:31 PDT"]
[Termination "friarnator won by resignation"]

1. e4 {[%clk 0:04:56.7]} 1... Nf6 {[%clk 0:04:58.3]} 2. f4 {[%clk 0:04:56.4]}
2... Nxe4 {[%clk 0:04:57.3]} 3. Nf3 {[%clk 0:04:55.4]} 3... d5 {[%clk
0:04:55.7]} 4. d3 {[%clk 0:04:54.1]} 4... Nf6 {[%clk 0:04:53.5]} 5. Be2 {[%clk
0:04:53.9]} 5... c5 {[%clk 0:04:50.7]} 6. O-O {[%clk 0:04:53.7]} 6... Nc6 {[%clk
0:04:50.1]} 7. Nbd2 {[%clk 0:04:53]} 7... Bg4 {[%clk 0:04:44.6]} 8. Ne5 {[%clk
0:04:50.7]} 8... Bxe2 {[%clk 0:04:41.8]} 9. Qxe2 {[%clk 0:04:48.6]} 9... e6
{[%clk 0:04:38.8]} 10. f5 {[%clk 0:04:44.5]} 10... Qd6 {[%clk 0:04:35.8]} 11.
Nxc6 {[%clk 0:04:43.2]} 11... bxc6 {[%clk 0:04:34]} 12. fxe6 {[%clk 0:04:42.4]}
12... fxe6 {[%clk 0:04:32.7]} 13. Nf3 {[%clk 0:04:32.5]} 13... Be7 {[%clk
0:04:23]} 14. Bd2 {[%clk 0:04:25.5]} 14... O-O {[%clk 0:04:20.1]} 15. a3 {[%clk
0:04:24.4]} 15... Rab8 {[%clk 0:04:10.2]} 16. b3 {[%clk 0:04:16.6]} 16... Ng4
{[%clk 0:03:51.2]} 17. h3 {[%clk 0:03:38.2]} 17... Rxf3 {[%clk 0:03:46.6]} 18.
hxg4 {[%clk 0:03:36.7]} 18... Rxf1+ {[%clk 0:03:41.3]} 19. Rxf1 {[%clk
0:03:34.2]} 19... Rf8 {[%clk 0:03:37.8]} 20. Re1 {[%clk 0:03:30.8]} 20... Kf7
{[%clk 0:03:31]} 21. Rf1+ {[%clk 0:03:15.9]} 21... Ke8 {[%clk 0:03:29.2]} 22.
Rxf8+ {[%clk 0:03:12.9]} 22... Bxf8 {[%clk 0:03:29.1]} 23. Qf3 {[%clk 0:03:03]}
23... e5 {[%clk 0:03:21.4]} 24. Qf5 {[%clk 0:02:57.9]} 24... Qd7 {[%clk
0:03:13.3]} 25. Qxe5+ {[%clk 0:02:53.3]} 25... Qe7 {[%clk 0:03:09.6]} 26. Qb8+
{[%clk 0:02:43.7]} 26... Kf7 {[%clk 0:03:08.2]} 27. Qf4+ {[%clk 0:02:38.5]}
27... Kg8 {[%clk 0:03:04.8]} 28. Be3 {[%clk 0:02:25.1]} 28... Qd6 {[%clk
0:02:57.4]} 29. Qf5 {[%clk 0:02:12.8]} 29... g6 {[%clk 0:02:42.3]} 30. Qf3
{[%clk 0:02:06.2]} 30... Bg7 {[%clk 0:02:36.9]} 31. Kf2 {[%clk 0:01:57.6]} 31...
Qf6 {[%clk 0:02:34.4]} 32. Qxf6 {[%clk 0:01:54.1]} 32... Bxf6 {[%clk 0:02:34.3]}
33. g5 {[%clk 0:01:52.5]} 33... Be7 {[%clk 0:02:32.9]} 34. g4 {[%clk 0:01:50.2]}
34... Kf7 {[%clk 0:02:32.1]} 35. d4 {[%clk 0:01:47.4]} 35... c4 {[%clk
0:02:08.3]} 36. bxc4 {[%clk 0:01:45]} 36... Bxa3 {[%clk 0:02:07.5]} 37. cxd5
{[%clk 0:01:43.6]} 37... cxd5 {[%clk 0:02:06.2]} 38. Ke2 {[%clk 0:01:34.7]}
38... Ke6 {[%clk 0:02:04.8]} 39. Kd3 {[%clk 0:01:31.8]} 39... Kd6 {[%clk
0:02:03.5]} 40. Kc3 {[%clk 0:01:30.8]} 40... Kc6 {[%clk 0:02:01.5]} 41. Kb3
{[%clk 0:01:29.7]} 41... Be7 {[%clk 0:02:00.5]} 42. c3 {[%clk 0:01:25.1]} 42...
Kb5 {[%clk 0:01:59.3]} 43. Bd2 {[%clk 0:01:22.6]} 43... a5 {[%clk 0:01:56.9]}
44. Be3 {[%clk 0:01:18.9]} 44... a4+ {[%clk 0:01:56.2]} 45. Ka2 {[%clk
0:01:16.7]} 45... Kc4 {[%clk 0:01:56.1]} 46. Bd2 {[%clk 0:01:15.7]} 46... Kd3
{[%clk 0:01:54.5]} 47. Bc1 {[%clk 0:01:14.6]} 47... Kxc3 {[%clk 0:01:53.3]} 48.
Ba3 {[%clk 0:01:14]} 48... Bxa3 {[%clk 0:01:51.7]} 49. Kxa3 {[%clk 0:01:13.8]}
49... Kxd4 {[%clk 0:01:51.2]} 50. Kxa4 {[%clk 0:01:13.5]} 50... Kc3 {[%clk
0:01:50.5]} 0-1

[Event "Live Chess"]
[Site "Chess.com"]
[Date "2023.05.21"]
[Round "-"]
[White "AttackingSnowLeopard"]
[Black "nigelst"]
[Result "1-0"]
[WhiteElo "2160"]
[BlackElo "1708"]
[TimeControl "300"]
[EndTime "6:09:41 PDT"]
[Termination "AttackingSnowLeopard won by resignation"]

1. Nf3 {[%clk 0:04:57.1]} 1... Nf6 {[%clk 0:04:57.8]} 2. g3 {[%clk 0:04:56.4]}
2... e6 {[%clk 0:04:56.9]} 3. Bg2 {[%clk 0:04:55.9]} 3... c5 {[%clk 0:04:55.7]}
4. O-O {[%clk 0:04:55.1]} 4... Nc6 {[%clk 0:04:54.3]} 5. d4 {[%clk 0:04:54.5]}
5... cxd4 {[%clk 0:04:52.6]} 6. Nxd4 {[%clk 0:04:54.4]} 6... Nxd4 {[%clk
0:04:48.8]} 7. Qxd4 {[%clk 0:04:54.3]} 7... d6 {[%clk 0:04:47.8]} 8. c4 {[%clk
0:04:52.6]} 8... Be7 {[%clk 0:04:46.9]} 9. Nc3 {[%clk 0:04:51]} 9... O-O {[%clk
0:04:44.5]} 10. e4 {[%clk 0:04:49.2]} 10... e5 {[%clk 0:04:40.9]} 11. Qd3 {[%clk
0:04:47.5]} 11... Bd7 {[%clk 0:04:38.4]} 12. h3 {[%clk 0:04:45]} 12... Bc6
{[%clk 0:04:37.3]} 13. Be3 {[%clk 0:04:43.8]} 13... b6 {[%clk 0:04:34.4]} 14.
Nd5 {[%clk 0:04:42.8]} 14... Bxd5 {[%clk 0:04:27.2]} 15. cxd5 {[%clk 0:04:41.3]}
15... Rc8 {[%clk 0:04:25.2]} 16. Rac1 {[%clk 0:04:37.9]} 16... Qd7 {[%clk
0:04:22.9]} 17. a4 {[%clk 0:04:21.2]} 17... Rxc1 {[%clk 0:04:12.8]} 18. Rxc1
{[%clk 0:04:19.3]} 18... Rc8 {[%clk 0:03:59.3]} 19. Rxc8+ {[%clk 0:04:12.1]}
19... Qxc8 {[%clk 0:03:58.1]} 20. Qb5 {[%clk 0:04:11.6]} 20... h6 {[%clk
0:03:38.3]} 21. b4 {[%clk 0:04:06.7]} 21... Qc2 {[%clk 0:03:33.6]} 22. a5 {[%clk
0:03:59.7]} 22... bxa5 {[%clk 0:03:29.5]} 23. bxa5 {[%clk 0:03:56.9]} 23... Kh7
{[%clk 0:03:21.4]} 24. Bxa7 {[%clk 0:03:54.6]} 24... Nxe4 {[%clk 0:03:17.5]} 25.
Bxe4+ {[%clk 0:03:53]} 25... Qxe4 {[%clk 0:03:15.1]} 26. a6 {[%clk 0:03:52]}
26... Qe1+ {[%clk 0:03:09.8]} 27. Kh2 {[%clk 0:03:50.5]} 27... Bg5 {[%clk
0:02:03.9]} 28. Bb6 {[%clk 0:03:44.6]} 28... Bd8 {[%clk 0:01:46.8]} 29. Be3
{[%clk 0:03:35.3]} 29... Bg5 {[%clk 0:01:18.6]} 30. Bb6 {[%clk 0:03:33.6]} 30...
Bd8 {[%clk 0:01:16.7]} 31. Bxd8 {[%clk 0:03:30.3]} 31... Qxf2+ {[%clk
0:01:14.1]} 32. Kh1 {[%clk 0:03:29.9]} 32... Qf3+ {[%clk 0:01:07]} 33. Kg1
{[%clk 0:03:28.1]} 33... Qxg3+ {[%clk 0:00:59.2]} 34. Kf1 {[%clk 0:03:27.5]}
34... Qxh3+ {[%clk 0:00:49.9]} 35. Ke1 {[%clk 0:03:27]} 35... Qh1+ {[%clk
0:00:25.9]} 36. Kd2 {[%clk 0:03:20.8]} 36... Qg2+ {[%clk 0:00:20.1]} 37. Kc3
{[%clk 0:03:16.1]} 37... Qf3+ {[%clk 0:00:17.7]} 38. Qd3+ {[%clk 0:03:06.7]}
38... e4 {[%clk 0:00:13.3]} 39. Qxf3 {[%clk 0:03:00.1]} 39... exf3 {[%clk
0:00:11.9]} 40. Bb6 {[%clk 0:02:37.4]} 1-0

[Event "Live Chess"]
[Site "Chess.com"]
[Date "2023.05.21"]
[Round "-"]
[White "gmnorfolk"]
[Black "Doge_Dandolo"]
[Result "1-0"]
[WhiteElo "2138"]
[BlackElo "1908"]
[TimeControl "300"]
[EndTime "6:09:57 PDT"]
[Termination "gmnorfolk won by resignation"]

1. d4 {[%clk 0:04:58.3]} 1... d5 {[%clk 0:04:57.4]} 2. c4 {[%clk 0:04:57.9]}
2... c6 {[%clk 0:04:56.5]} 3. cxd5 {[%clk 0:04:57.1]} 3... cxd5 {[%clk
0:04:54.8]} 4. Nc3 {[%clk 0:04:57]} 4... Nf6 {[%clk 0:04:52.5]} 5. Nf3 {[%clk
0:04:56.6]} 5... Nc6 {[%clk 0:04:51]} 6. Bf4 {[%clk 0:04:56.3]} 6... a6 {[%clk
0:04:49.4]} 7. e3 {[%clk 0:04:56]} 7... Bf5 {[%clk 0:04:48.1]} 8. Rc1 {[%clk
0:04:55.5]} 8... e6 {[%clk 0:04:46.3]} 9. Be2 {[%clk 0:04:55.1]} 9... Bb4 {[%clk
0:04:43.1]} 10. O-O {[%clk 0:04:54.6]} 10... O-O {[%clk 0:04:41.7]} 11. h3
{[%clk 0:04:53.3]} 11... Rc8 {[%clk 0:04:34.1]} 12. Ne5 {[%clk 0:04:49.6]} 12...
Nxe5 {[%clk 0:04:30.7]} 13. Bxe5 {[%clk 0:04:47.6]} 13... h6 {[%clk 0:04:26.1]}
14. a3 {[%clk 0:04:44.4]} 14... Bd6 {[%clk 0:04:23.3]} 15. Bxd6 {[%clk
0:04:41.7]} 15... Qxd6 {[%clk 0:04:21]} 16. f3 {[%clk 0:04:41.4]} 16... Qg3
{[%clk 0:04:13.3]} 17. Qe1 {[%clk 0:04:39.3]} 17... Qxe1 {[%clk 0:04:08.7]} 18.
Rfxe1 {[%clk 0:04:37.9]} 18... Rc6 {[%clk 0:04:07.6]} 19. Na2 {[%clk 0:04:32.3]}
19... Rfc8 {[%clk 0:04:04.1]} 20. Rxc6 {[%clk 0:04:31.3]} 20... Rxc6 {[%clk
0:04:03]} 21. Rc1 {[%clk 0:04:30.8]} 21... Rxc1+ {[%clk 0:04:00.1]} 22. Nxc1
{[%clk 0:04:29.7]} 22... b5 {[%clk 0:03:55.5]} 23. Kf1 {[%clk 0:04:28.7]} 23...
Ne8 {[%clk 0:03:52.9]} 24. Ke1 {[%clk 0:04:28.3]} 24... Nd6 {[%clk 0:03:51.6]}
25. Kd2 {[%clk 0:04:27.8]} 25... Nc4+ {[%clk 0:03:49.8]} 26. Bxc4 {[%clk
0:04:23.9]} 26... bxc4 {[%clk 0:03:44.5]} 27. Kc3 {[%clk 0:04:22.9]} 27... Kf8
{[%clk 0:03:41.5]} 28. Kb4 {[%clk 0:04:22.2]} 28... Ke7 {[%clk 0:03:37.7]} 29.
Ka5 {[%clk 0:04:21.8]} 29... Kd6 {[%clk 0:03:34.6]} 30. Kxa6 {[%clk 0:04:21.7]}
30... Kc6 {[%clk 0:03:33.3]} 31. Ka5 {[%clk 0:04:20.2]} 31... Kb7 {[%clk
0:03:31.5]} 32. Kb5 {[%clk 0:04:18.4]} 32... Bc2 {[%clk 0:03:27.1]} 33. Kc5
{[%clk 0:04:14.3]} 33... Bd3 {[%clk 0:03:23.5]} 34. Kd6 {[%clk 0:04:12.6]} 34...
Bf1 {[%clk 0:03:22.2]} 35. g3 {[%clk 0:04:10.3]} 35... Bxh3 {[%clk 0:03:20.9]}
36. Ke7 {[%clk 0:04:09.4]} 36... Bg2 {[%clk 0:03:16.5]} 37. f4 {[%clk
0:04:08.3]} 37... Ka6 {[%clk 0:03:12.4]} 38. Kxf7 {[%clk 0:04:06.8]} 38... Be4
{[%clk 0:03:07.9]} 39. Kxg7 {[%clk 0:04:02]} 39... h5 {[%clk 0:03:07.1]} 40. Kf6
{[%clk 0:03:56]} 40... Bf5 {[%clk 0:03:05.7]} 41. Ne2 {[%clk 0:03:51]} 41... Ka5
{[%clk 0:03:03.8]} 42. Nc3 {[%clk 0:03:50.5]} 42... Bg4 {[%clk 0:02:58.7]} 43.
Kg5 {[%clk 0:03:46.5]} 43... Kb6 {[%clk 0:02:54.5]} 44. a4 {[%clk 0:03:42.5]}
44... Ka5 {[%clk 0:02:53.2]} 45. Kf6 {[%clk 0:03:38.9]} 45... Bf5 {[%clk
0:02:49.1]} 46. Ke7 {[%clk 0:03:34.2]} 46... Kb4 {[%clk 0:02:43.4]} 47. Kd6
{[%clk 0:03:32]} 47... Bc2 {[%clk 0:02:41]} 48. Kxe6 {[%clk 0:03:28.8]} 48...
Bxa4 {[%clk 0:02:39.9]} 49. Nxa4 {[%clk 0:03:25.5]} 49... Kxa4 {[%clk
0:02:38.7]} 50. Kxd5 {[%clk 0:03:22.9]} 50... Kb4 {[%clk 0:02:37.3]} 51. f5
{[%clk 0:03:21.7]} 1-0